bitfinex-derivatives/quotes_BNBF0:USTF0_20250603
["timestamp","ask_amount","ask_price","bid_price","bid_amount"]
[1748918337576,1.11469872,669.93,669.5,0.29873039]
[1748918337775,2.11489333,669.92,669.5,0.29873039]
[1748918337975,0.89497089,669.91,669.5,0.29873039]
[1748918338180,1.00020087,669.9,669.5,0.29873039]
[1748918338475,1.89517844,669.89,669.5,0.29873039]
[1748918338680,1.00020087,669.9,669.5,0.29873039]
[1748918338875,2.744,669.88,669.5,0.29873039]
[1748918339079,1.89513259,669.87,669.5,0.29873039]
[1748918339274,2.744,669.88,669.5,0.29873039]
[1748918339477,0.89497431,669.87,669.5,0.29873039]
[1748918339682,2.744,669.88,669.5,0.29873039]
[1748918339875,1.00015295,669.87,669.5,0.29873039]
[1748918340075,1.78997512,669.86,669.5,0.29873039]
[1748918340281,0.89499925,669.86,669.5,0.29873039]
[1748918340482,0.89500468,669.85,669.5,0.29873039]
[1748918340679,0.89499925,669.86,669.5,0.29873039]
[1748918341377,2.6850077,669.85,669.5,0.29873039]
[1748918341582,1.79001105,669.85,669.5,0.29873039]
[1748918355990,1.271,669.84,669.5,0.29873039]
[1748918359694,0.973,669.83,669.5,0.29873039]
[1748918385815,3.493,669.84,669.5,0.29873039]
[1748918389522,1.057,669.83,669.5,0.29873039]
[1748918408132,1.057,669.83,669.5,1.41438719]
[1748918408426,1.057,669.83,669.55,1.1156568]
[1748918408630,1.057,669.83,669.56,0.29870362]
[1748918409025,1.057,669.83,669.56,1.41436042]
[1748918409429,1.057,669.83,669.56,1.41376316]
[1748918409630,1.084,669.84,669.56,0.29870362]
[1748918412936,1.451,669.83,669.56,0.29870362]
[1748918430945,1.79001105,669.85,669.56,0.29870362]
[1748918431550,1.11121085,669.79,669.56,0.29870362]
[1748918432050,1.11121085,669.82,669.56,0.29870362]
[1748918432452,1.11121085,669.84,669.56,0.29870362]
[1748918432948,0.89390801,669.83,669.56,0.29870362]
[1748918433247,1.11121085,669.84,669.56,0.29870362]
[1748918433452,1.79001105,669.85,669.56,0.29870362]
[1748918433652,1.11094167,669.84,669.56,0.29870362]
[1748918434054,1.251,669.83,669.56,0.29870362]
[1748918441157,1.11068552,669.81,669.56,0.29870362]
[1748918441852,0.89318603,669.8,669.56,0.29870362]
[1748918442356,1.78637206,669.8,669.56,0.29870362]
[1748918442558,0.89324295,669.79,669.56,0.29870362]
[1748918442857,0.89324253,669.78,669.56,0.29870362]
[1748918443052,1.78637206,669.8,669.56,0.29870362]
[1748918444562,1.11068552,669.76,669.56,0.29870362]
[1748918444861,1.78637206,669.8,669.56,0.29870362]
[1748918445067,1.11013179,669.77,669.56,0.29870362]
[1748918445466,1.11013179,669.78,669.56,0.29870362]
[1748918445967,1.11013179,669.79,669.56,0.29870362]
[1748918446361,1.11013179,669.75,669.56,0.29870362]
[1748918446864,1.11013179,669.76,669.56,0.29870362]
[1748918447465,1.11013179,669.78,669.56,0.29870362]
[1748918448165,1.11013179,669.79,669.56,0.29870362]
[1748918448872,2.22015213,669.79,669.56,0.29870362]
[1748918449268,1.11002034,669.78,669.56,0.29870362]
[1748918450265,1.78637206,669.8,669.56,0.29870362]
[1748918459074,0.90259963,669.79,669.56,0.29870362]
[1748918459278,0.90253791,669.78,669.56,0.29870362]
[1748918459479,1.78637206,669.8,669.56,0.29870362]
[1748918459671,0.90254111,669.79,669.56,0.29870362]
[1748918459873,1.78637206,669.8,669.56,0.29870362]
[1748918460577,1.80505834,669.79,669.56,0.29870362]
[1748918461271,1.80509996,669.78,669.56,0.29870362]
[1748918461475,0.90251825,669.78,669.56,0.29870362]
[1748918461679,0.90258401,669.77,669.56,0.29870362]
[1748918461878,0.90258541,669.76,669.56,0.29870362]
[1748918462078,0.90251825,669.78,669.56,0.29870362]
[1748918463883,0.946,669.77,669.56,0.29870362]
[1748918487098,0.90251825,669.78,669.56,0.29870362]
[1748918490397,0.894,669.77,669.56,0.29870362]
[1748918510313,0.90251825,669.78,669.56,0.29870362]
[1748918512711,1.233,669.77,669.56,0.29870362]
[1748918524617,1.233,669.77,669.56,0.77291262]
[1748918525020,1.233,669.77,669.56,0.29870362]
[1748918530820,0.90251825,669.78,669.56,0.29870362]
[1748918534526,0.866,669.77,669.56,0.29870362]
[1748918534928,0.866,669.77,669.57,1.11566415]
[1748918535129,0.866,669.77,669.58,0.2986947]
[1748918537533,0.866,669.77,669.58,1.41511622]
[1748918537929,0.866,669.77,669.6,1.11642152]
[1748918538129,0.866,669.77,669.61,1.41510284]
[1748918538327,0.866,669.77,669.62,0.29867686]
[1748918540631,0.866,669.77,669.68,1.11642152]
[1748918540833,0.866,669.77,669.69,0.29864564]
[1748918542633,0.866,669.77,669.76,1.11641799]
[1748918542833,0.866,669.77,669.76,1.41503241]
[1748918543831,0.866,669.77,669.76,0.29861442]
[1748918557441,0.90251825,669.78,669.76,0.29861442]
[1748918580157,0.90251825,669.78,669.76,1.41304361]
[1748918581654,0.90251825,669.78,669.76,0.29861442]
[1748918589362,1.035,669.9,669.76,0.29861442]
[1748918589663,1.035,669.9,669.82,0.47479079]
[1748918589862,1.035,669.9,669.83,0.29858322]
[1748918590059,3.648,670.1,669.83,0.29858322]
[1748918590661,3.648,670.1,669.86,1.11506661]
[1748918590961,3.648,670.1,669.92,1.11506661]
[1748918591163,3.648,670.1,669.93,1.41360526]
[1748918591359,3.648,670.1,669.94,0.29853419]
[1748918591763,3.648,670.1,669.95,1.11506661]
[1748918591970,2.5,670.1,669.96,0.29852528]
[1748918592363,2.5,670.1,670.01,1.11506661]
[1748918592569,2.5,670.1,670.03,1.11506661]
[1748918592769,2.5,670.1,670.04,0.29848964]
[1748918593173,2.5,670.1,670.04,1.4135677]
[1748918594172,2.5,670.1,670.05,1.11507806]
[1748918594370,2.5,670.1,670.06,0.29848073]
[1748918594570,1.395,670.1,670.06,0.29848073]
[1748918599377,0.904,670.15,670.06,0.29848073]
[1748918614791,1.11248881,670.28,670.06,0.29848073]
[1748918614991,0.90220659,670.27,670.06,0.29848073]
[1748918615193,1.11248881,670.28,670.06,0.29848073]
[1748918615789,1.11223505,670.28,670.06,0.29848073]
[1748918616490,3.753,670.4,670.06,0.29848073]
[1748918616491,1.11223505,670.29,670.06,0.29848073]
[1748918616694,0.90134659,670.28,670.06,0.29848073]
[1748918616894,1.11223505,670.29,670.06,0.29848073]
[1748918617095,0.90137762,670.28,670.06,0.29848073]
[1748918617290,0.935,670.28,670.06,0.29848073]
[1748918620697,1.11193856,670.24,670.06,0.29848073]
[1748918623395,1.11193856,670.25,670.06,0.29848073]
[1748918623998,1.11193856,670.24,670.06,0.29848073]
[1748918626695,1.11193856,670.26,670.06,0.29848073]
[1748918627099,0.935,670.28,670.06,0.29848073]
[1748918627300,1.11150574,670.26,670.06,0.29848073]
[1748918628398,1.11150574,670.25,670.06,0.29848073]
[1748918628601,1.11150574,670.26,670.06,0.29848073]
[1748918629204,1.11150574,670.27,670.06,0.29848073]
[1748918630801,2.04650574,670.28,670.06,0.29848073]
[1748918630998,2.0464905,670.28,670.06,0.29848073]
[1748918632501,1.1114905,670.26,670.06,0.29848073]
[1748918632704,1.1114905,670.25,670.06,0.29848073]
[1748918632898,0.90056809,670.24,670.06,0.29848073]
[1748918633197,2.01205347,670.23,670.06,0.29848073]
[1748918633404,0.90055973,670.22,670.06,0.29848073]
[1748918633598,2.01205347,670.23,670.06,0.29848073]
[1748918633998,0.90056297,670.23,670.06,0.29848073]
[1748918634802,0.90054217,670.22,670.06,0.29848073]
[1748918635005,0.90056297,670.23,670.06,0.29848073]
[1748918635205,0.90053935,670.22,670.06,0.29848073]
[1748918635405,0.90054461,670.21,670.06,0.29848073]
[1748918635605,0.90056297,670.23,670.06,0.29848073]
[1748918635807,0.90054114,670.22,670.06,0.29848073]
[1748918636002,0.90056297,670.23,670.06,0.29848073]
[1748918636402,0.90082909,670.22,670.06,0.29848073]
[1748918636708,2.01126572,670.23,670.06,0.29848073]
[1748918637108,2.01158673,670.22,670.06,0.29848073]
[1748918637411,1.11070275,670.14,670.06,0.29848073]
[1748918637608,0.90082362,670.13,670.06,0.29848073]
[1748918637809,1.11070275,670.15,670.06,0.29848073]
[1748918638001,1.11070275,670.14,670.06,0.29848073]
[1748918638200,0.9007083,670.13,670.06,0.29848073]
[1748918638407,1.8014166,670.13,670.06,0.29848073]
[1748918638802,0.90069923,670.12,670.06,0.29848073]
[1748918639002,1.8014166,670.13,670.06,0.29848073]
[1748918639302,0.90070076,670.11,670.06,0.29848073]
[1748918639501,0.90070072,670.1,670.06,0.29848073]
[1748918639706,0.90070076,670.11,670.06,0.29848073]
[1748918640106,0.90056388,670.1,670.06,0.29848073]
[1748918640300,0.90070076,670.11,670.06,0.29848073]
[1748918641509,1.11037107,670.08,670.06,0.29848073]
[1748918641910,0.90070076,670.11,670.06,0.29848073]
[1748918641911,1.11037107,670.09,670.06,0.29848073]
[1748918642309,0.89809188,670.08,670.06,0.29848073]
[1748918642709,1.11037107,670.09,670.06,0.29848073]
[1748918642906,0.90070076,670.11,670.06,0.29848073]
[1748918643111,0.89808374,670.1,670.06,0.29848073]
[1748918643414,0.90070076,670.11,670.06,0.29848073]
[1748918643611,0.89807225,670.1,670.06,0.29848073]
[1748918643806,0.90070076,670.11,670.06,0.29848073]
[1748918644007,0.89807063,670.1,670.06,0.29848073]
[1748918644312,0.90070076,670.11,670.06,0.29848073]
[1748918644610,0.89814378,670.09,670.06,0.29848073]
[1748918644912,0.89746935,670.08,670.06,0.29848073]
[1748918645113,0.89746629,670.07,670.06,0.29848073]
[1748918645313,0.89747553,670.07,670.06,0.29848073]
[1748918645507,0.8974693,670.08,670.06,0.29848073]
[1748918647014,0.89746998,670.07,670.06,0.29848073]
[1748918647220,0.8974693,670.08,670.06,0.29848073]
[1748918647514,0.89746609,670.07,670.06,0.29848073]
[1748918647719,0.8974693,670.08,670.06,0.29848073]
[1748918648320,0.89750598,670.07,670.06,0.29848073]
[1748918648513,0.8974693,670.08,670.06,0.29848073]
[1748918729176,1.11284075,670.07,670.06,0.29848073]
[1748918729375,0.8974693,670.08,670.06,0.29848073]
[1748918729376,2.01031005,670.08,670.06,0.29848073]
[1748918729774,0.8974693,670.08,670.06,0.29848073]
[1748918731069,1.11264742,670.07,670.06,0.29848073]
[1748918731672,0.8974693,670.08,670.06,0.29848073]
[1748918734282,2.00987773,670.08,670.06,0.29848073]
[1748918734474,0.8974693,670.08,670.06,0.29848073]
[1748918742381,2.00922945,670.08,670.06,0.29848073]
[1748918742791,0.8974693,670.08,670.06,0.29848073]
[1748918746288,2.00882876,670.08,670.06,0.29848073]
[1748918746689,0.8974693,670.08,670.06,0.29848073]
[1748918749794,2.00892826,670.08,670.06,0.29848073]
[1748918750192,0.8974693,670.08,670.06,0.29848073]
[1748918753101,2.37926126,670.08,670.06,0.29848073]
[1748918753800,2.37499112,670.07,670.06,0.29848073]
[1748918754103,0.8974693,670.08,670.06,0.29848073]
[1748918754293,0.8931607,670.07,670.06,0.29848073]
[1748918754494,0.8974693,670.08,670.06,0.29848073]
[1748918755297,0.89317589,670.07,670.06,0.29848073]
[1748918755695,1.78634313,670.07,670.06,0.29848073]
[1748918756198,0.89317589,670.07,670.06,0.29848073]
[1748918756595,1.78464326,670.07,670.06,0.29848073]
[1748918756901,0.89317589,670.07,670.06,0.29848073]
[1748918757101,1.78464588,670.07,670.06,0.29848073]
[1748918757298,0.89317589,670.07,670.06,0.29848073]
[1748918758096,0.89317589,670.07,669.58,1.11664042]
[1748918758297,0.89141037,670.06,669.59,0.29869024]
[1748918758501,1.11012942,669.91,669.59,0.29869024]
[1748918759699,1.11012942,669.92,669.59,0.29869024]
[1748918759905,1.11012942,669.85,669.59,0.29869024]
[1748918760101,0.89150063,669.84,669.59,0.29869024]
[1748918760304,1.11012942,669.85,669.59,0.29869024]
[1748918760500,1.10995922,669.78,669.59,0.29869024]
[1748918760905,1.10995922,669.77,669.59,0.29869024]
[1748918761101,1.10995922,669.76,669.59,0.29869024]
[1748918761900,1.10995922,669.74,669.59,0.29869024]
[1748918762404,0.994,669.73,669.59,0.29869024]
[1748918818743,2.10409691,669.73,669.59,0.29869024]
[1748918819439,0.994,669.73,669.59,0.29869024]
[1748918819643,2.10409691,669.73,669.59,0.29869024]
[1748918820139,1.11009691,669.72,669.59,0.29869024]
[1748918820740,0.89028275,669.71,669.59,0.29869024]
[1748918821045,1.11009691,669.65,669.59,0.29869024]
[1748918821446,2.10409691,669.73,669.59,0.29869024]
[1748918822241,0.994,669.73,669.59,0.29869024]
[1748918830856,1.11130113,669.71,669.59,0.29869024]
[1748918832057,0.994,669.73,669.59,0.29869024]
[1748918832258,1.1111291,669.7,669.59,0.29869024]
[1748918834055,1.1111291,669.71,669.59,0.29869024]
[1748918834665,1.1111291,669.7,669.59,0.29869024]
[1748918835457,0.994,669.73,669.59,0.29869024]
[1748918835656,1.11102918,669.69,669.59,0.29869024]
[1748918835957,1.11102918,669.68,669.59,0.29869024]
[1748918836563,1.11102918,669.65,669.59,0.29869024]
[1748918837761,1.11102918,669.64,669.59,0.29869024]
[1748918837958,1.11102918,669.65,669.59,0.29869024]
[1748918838362,1.11102918,669.64,669.59,0.29869024]
[1748918838565,1.11102918,669.6,669.59,0.29869024]
[1748918838862,1.48017256,669.72,669.59,0.29869024]
[1748918839766,2.47417256,669.73,669.59,0.29869024]
[1748918839960,0.88986464,669.72,669.59,0.29869024]
[1748918840163,0.88986468,669.71,669.59,0.29869024]
[1748918840364,0.88986666,669.7,669.59,0.29869024]
[1748918840965,1.110474,669.6,669.59,0.29869024]
[1748918841669,0.88986466,669.69,669.59,0.29869024]
[1748918842969,0.887672,669.68,669.59,0.29869024]
[1748918843166,0.88986466,669.69,669.59,0.29869024]
[1748918843365,0.88767748,669.68,669.59,0.29869024]
[1748918843566,0.88766118,669.67,669.59,0.29869024]
[1748918843767,0.46965622,669.66,669.59,0.29869024]
[1748918844063,1.10904835,669.6,669.59,0.29869024]
[1748918844365,1.99752653,669.6,669.59,0.29869024]
[1748918844665,1.10904835,669.6,669.59,0.29869024]
[1748918845067,1.99756089,669.6,669.59,0.29869024]
[1748918845571,1.77694646,669.6,669.59,0.29869024]
[1748918846270,1.77694646,669.6,669.58,1.11664042]
[1748918846564,0.88851254,669.6,669.58,1.11664042]
[1748918847269,0.88817946,669.59,669.58,1.11664042]
[1748918847571,1.35807815,669.59,669.58,1.11664042]
[1748918847768,0.88817946,669.59,669.58,1.11664042]
[1748918847969,0.88851254,669.6,669.58,1.11664042]
[1748918852575,0.88851254,669.6,668.73,1.11286312]
[1748918852770,0.88851254,669.6,668.75,0.29906542]
[1748918853372,1.10585385,669.54,668.75,0.29906542]
[1748918853677,1.10585385,669.56,668.75,0.29906542]
[1748918854377,2.2114924,669.56,668.75,0.29906542]
[1748918854978,1.10563855,669.56,668.75,0.29906542]
[1748918855479,0.88851254,669.6,668.75,0.29906542]
[1748918855880,1.10563855,669.59,668.75,0.29906542]
[1748918856475,1.10563855,669.58,668.75,0.29906542]
[1748918856678,0.88412718,669.58,668.75,0.29906542]
[1748918857273,0.88413295,669.57,668.75,0.29906542]
[1748918857680,0.88851254,669.6,668.75,0.29906542]
[1748918857875,0.88413036,669.56,668.75,0.29906542]
[1748918858181,0.88851254,669.6,668.75,0.29906542]
[1748918858577,0.88534578,669.59,668.75,0.29906542]
[1748918858881,0.88851254,669.6,668.75,0.29906542]
[1748918860576,0.88503818,669.59,668.75,0.29906542]
[1748918860778,0.88851254,669.6,668.75,0.29906542]
[1748918860982,0.88551892,669.59,668.75,0.29906542]
[1748918861180,0.88551866,669.58,668.75,0.29906542]
[1748918861378,0.88508592,669.57,668.75,0.29906542]
[1748918861583,0.88551892,669.59,668.75,0.29906542]
[1748918867990,1.285,669.58,668.75,0.29906542]
[1748918871085,1.285,669.58,668.75,1.41072081]
[1748918872788,1.285,669.58,668.76,2.22350615]
[1748918872989,1.285,669.58,668.78,0.299052]
[1748918875393,1.285,669.58,668.78,1.41090276]
[1748918875994,1.285,669.58,668.79,1.11185076]
[1748918876198,1.285,669.58,668.8,0.29904306]
[1748918878091,1.285,669.58,668.83,1.11211168]
[1748918878394,1.285,669.58,668.84,0.29902517]
[1748918879098,0.88551892,669.59,668.84,0.29902517]
[1748918880799,0.88551892,669.59,668.84,1.41151531]
[1748918880999,0.88551892,669.59,668.84,0.29902517]
[1748918882495,1.108,669.58,668.84,0.29902517]
[1748918887402,1.108,669.58,668.84,1.41208455]
[1748918889301,1.108,669.58,668.85,1.11305938]
[1748918889504,1.108,669.58,668.89,1.11305938]
[1748918889704,1.108,669.58,668.9,0.29899835]
[1748918890310,1.108,669.58,668.9,1.41279117]
[1748918891611,1.108,669.58,668.91,1.11379282]
[1748918891812,1.108,669.58,668.92,0.29898941]
[1748918892311,1.108,669.58,668.92,1.41278223]
[1748918892506,1.108,669.58,668.93,1.11379282]
[1748918892712,1.108,669.58,668.94,0.29898047]
[1748918892914,1.108,669.58,668.97,1.11379282]
[1748918893113,1.108,669.58,669.01,1.11379282]
[1748918893412,1.108,669.58,669.02,0.29894472]
[1748918894013,1.108,669.58,669.02,1.41338522]
[1748918894214,1.108,669.58,669.03,1.1144405]
[1748918894412,1.108,669.58,669.04,0.29893578]
[1748918895412,0.88551892,669.59,669.04,0.29893578]
[1748918895613,0.88551892,669.59,669.04,1.41337628]
[1748918896107,0.88551892,669.59,669.06,1.1144405]
[1748918896314,0.88551892,669.59,668.95,1.4833001]
[1748918896315,0.88551892,669.59,669.07,1.41336288]
[1748918896511,0.88551892,669.59,669.08,0.29891791]
[1748918897914,0.928,669.58,669.08,0.29891791]
[1748918900116,1.10544448,669.54,669.08,0.29891791]
[1748918900712,1.10544448,669.53,669.08,0.29891791]
[1748918901212,0.928,669.58,669.08,0.29891791]
[1748918901811,1.10557436,669.5,669.08,0.29891791]
[1748918902618,1.10557436,669.49,669.08,0.29891791]
[1748918903615,1.10557436,669.5,669.08,0.29891791]
[1748918904721,0.928,669.58,669.08,0.29891791]
[1748918904920,1.1059883,669.45,669.08,0.29891791]
[1748918905120,1.1059883,669.46,669.08,0.29891791]
[1748918907317,1.1059883,669.45,669.08,0.29891791]
[1748918908516,2.40218473,669.58,669.08,0.29891791]
[1748918908720,1.10632343,669.45,669.08,0.29891791]
[1748918909116,1.10632343,669.42,669.08,0.29891791]
[1748918910417,1.10632343,669.46,669.08,0.29891791]
[1748918910822,1.10632343,669.53,669.08,0.29891791]
[1748918911020,1.10673865,669.53,669.08,0.29891791]
[1748918912524,1.10670563,669.53,669.08,0.29891791]
[1748918914325,1.10670563,669.55,669.08,0.29891791]
[1748918916220,1.10668778,669.55,669.08,0.29891791]
[1748918918622,1.10668778,669.57,669.08,0.29891791]
[1748918919825,0.928,669.58,669.08,0.29891791]
[1748918920025,1.10671267,669.57,669.08,0.29891791]
[1748918920225,2.03471267,669.58,669.08,0.29891791]
[1748918920921,1.10671267,669.49,669.08,0.29891791]
[1748918921627,1.10671267,669.48,669.08,0.29891791]
[1748918921826,1.10671267,669.49,669.08,0.29891791]
[1748918922626,1.10671267,669.52,669.08,0.29891791]
[1748918923731,1.10618578,669.52,669.08,0.29891791]
[1748918927029,1.10618578,669.51,669.08,0.29891791]
[1748918927431,0.928,669.58,669.08,0.29891791]
[1748918927630,1.10610121,669.5,669.08,0.29891791]
[1748918927831,1.10610121,669.51,669.08,0.29891791]
[1748918930729,0.818,669.5,669.08,0.29891791]
[1748918932439,1.10603445,669.45,669.08,0.29891791]
[1748918935136,1.10603435,669.45,669.08,0.29891791]
[1748918936239,1.10603435,669.46,669.08,0.29891791]
[1748918937744,1.10603435,669.41,669.08,0.29891791]
[1748918938943,1.10597439,669.4,669.08,0.29891791]
[1748918939344,1.10597439,669.44,669.08,0.29891791]
[1748918941442,0.818,669.5,669.08,0.29891791]
[1748918941641,1.10593942,669.44,669.08,0.29891791]
[1748918942841,1.10593942,669.45,669.08,0.29891791]
[1748918944247,0.818,669.5,669.08,0.29891791]
[1748918944642,1.92393942,669.5,669.08,0.29891791]
[1748918944837,1.10593942,669.48,669.08,0.29891791]
[1748918945136,1.10604945,669.48,669.08,0.29891791]
[1748918945338,1.10604945,669.47,669.08,0.29891791]
[1748918945539,1.10604945,669.45,669.08,0.29891791]
[1748918946337,1.10604945,669.41,669.08,0.29891791]
[1748918947246,1.10604945,669.39,669.08,0.29891791]
[1748918947847,0.8888809,669.38,669.08,0.29891791]
[1748918948350,0.46538621,669.37,669.08,0.29891791]
[1748918948746,1.10604945,669.3,669.08,0.29891791]
[1748918949550,1.10426962,669.19,669.08,0.29891791]
[1748918949746,0.46525122,669.18,669.08,0.29891791]
[1748918949947,0.46522548,669.17,669.08,0.29891791]
[1748918950152,1.47418473,669.19,669.08,0.29891791]
[1748918950352,0.4652389,669.18,669.08,0.29891791]
[1748918950554,1.47418473,669.19,669.08,0.29891791]
[1748918950752,0.88830137,669.18,669.08,0.29891791]
[1748918951047,1.47418473,669.11,669.08,0.29891791]
[1748918951248,1.47418473,669.19,669.08,0.29891791]
[1748918951450,0.88810614,669.18,669.08,0.29891791]
[1748918951650,1.35320347,669.17,669.08,0.29891791]
[1748918951952,1.35241888,669.16,669.08,0.29891791]
[1748918952255,0.88810614,669.18,669.08,0.29891791]
[1748918952553,0.88801741,669.15,669.08,0.29891791]
[1748918952750,0.88801956,669.14,669.08,0.29891791]
[1748918953048,0.88801741,669.15,669.08,0.29891791]
[1748918953252,0.88802714,669.14,669.08,0.29891791]
[1748918953455,0.88406804,669.13,669.08,0.29891791]
[1748918953752,0.88406381,669.12,669.08,0.29891791]
[1748918953954,0.88802714,669.14,669.08,0.29891791]
[1748918955255,1.09819252,669.09,669.08,0.29891791]
[1748918955649,1.09819252,669.09,668.08,0.26003138]
[1748918955650,0.88365583,669.09,668.08,0.26003138]
[1748918955854,0.8836769,669.08,668.1,0.29935638]
[1748918956054,0.88371662,669.07,668.1,0.29935638]
[1748918956250,0.99957451,669.09,668.1,0.29935638]
[1748918956455,1.76736939,669.06,668.1,0.29935638]
[1748918956756,0.88362047,669.05,668.1,0.29935638]
[1748918956954,0.99928195,669.04,668.1,0.29935638]
[1748918957149,0.99926816,669.03,668.1,0.29935638]
[1748918957354,1.76736939,669.06,668.1,0.29935638]
[1748918957551,1.88794637,669.05,668.1,0.29935638]
[1748918957756,1.00207709,669.04,668.1,0.29935638]
[1748918957957,1.76736939,669.06,668.1,0.29935638]
[1748918958155,0.88631506,669.03,668.1,0.29935638]
[1748918958356,1.76736939,669.06,668.1,0.29935638]
[1748918958560,0.88642668,669.02,668.1,0.29935638]
[1748918958861,1.76736939,669.06,668.1,0.29935638]
[1748918959962,2.8913059,669.05,668.1,0.29935638]
[1748918960158,2.89126959,669.05,668.1,0.29935638]
[1748918960359,0.8865151,669.04,668.1,0.29935638]
[1748918960759,2.00472674,669.03,668.1,0.29935638]
[1748918960963,1.88892701,669.02,668.1,0.29935638]
[1748918961164,1.00236314,669.03,668.1,0.29935638]
[1748918961367,1.88895942,669.02,668.1,0.29935638]
[1748918961665,1.00237138,669.02,668.1,0.29935638]
[1748918962260,0.88673319,669.01,668.1,1.40929776]
[1748918962466,1.002536,669.0,668.1,1.40929776]
[1748918962861,1.002536,669.0,668.1,0.29935638]
[1748918963260,0.88670645,668.99,668.1,0.29935638]
[1748918963465,1.002536,669.0,668.1,0.29935638]
[1748918963762,0.88671416,668.99,668.1,0.29935638]
[1748918964062,1.002536,669.0,668.1,0.29935638]
[1748918964266,1.00251233,668.98,668.1,0.29935638]
[1748918964460,0.88670784,668.97,668.1,0.29935638]
[1748918964662,2.89171403,668.96,668.1,0.29935638]
[1748918964962,1.0024855,668.95,668.1,0.29935638]
[1748918965162,1.00251068,668.94,668.1,0.29935638]
[1748918965565,1.88739425,668.94,668.1,0.29935638]
[1748918965970,1.76979238,668.93,668.1,0.29935638]
[1748918968461,1.76979238,668.93,668.12,1.10678156]
[1748918968660,1.76979238,668.93,668.14,0.29933846]
[1748918971166,0.965,668.92,668.14,0.29933846]
[1748918974268,0.965,668.92,668.15,1.10646184]
[1748918974574,0.965,668.92,668.16,1.40579134]
[1748918974773,0.965,668.92,668.17,0.29932502]
[1748918975879,0.965,668.92,668.17,1.40578686]
[1748918976275,0.965,668.92,668.17,1.40576201]
[1748918976671,0.965,668.92,668.17,0.29932502]
[1748918977573,0.965,668.92,668.18,1.10643699]
[1748918977776,0.965,668.92,668.19,0.29931606]
[1748918977978,0.965,668.92,668.19,1.40575305]
[1748918978180,0.965,668.92,668.24,1.10643699]
[1748918978380,0.965,668.92,668.25,0.29928918]
[1748918979179,0.965,668.92,668.27,1.10643699]
[1748918979377,0.965,668.92,668.28,0.29927575]
[1748918979880,0.965,668.92,668.31,1.10661956]
[1748918980083,0.965,668.92,668.1,2.23006167]
[1748918980084,0.965,668.92,668.32,1.4058774]
[1748918980278,0.965,668.92,668.33,0.29925336]
[1748918980481,0.965,668.92,668.36,0.47479079]
[1748918980781,0.965,668.92,668.37,0.29923545]
[1748918980981,0.965,668.92,668.37,0.77402624]
[1748918981278,0.965,668.92,668.37,1.40585501]
[1748918981480,0.965,668.92,668.37,0.77402624]
[1748918981875,0.965,668.92,668.37,0.29923545]
[1748918990284,1.76979238,668.93,668.37,0.29923545]
[1748918993682,1.014,668.92,668.37,0.29923545]
[1748919008798,1.76979238,668.93,668.37,0.29923545]
[1748919009197,0.88814669,668.92,668.37,0.29923545]
[1748919009401,0.88814669,668.91,668.37,0.29923545]
[1748919009604,0.88815313,668.9,668.37,0.29923545]
[1748919009798,0.88814171,668.89,668.37,0.29923545]
[1748919010005,1.76979238,668.93,668.37,0.29923545]
[1748919010303,0.88575532,668.92,668.37,0.29923545]
[1748919010499,1.76979238,668.93,668.37,0.29923545]
[1748919010706,0.88572893,668.92,668.37,0.29923545]
[1748919010907,0.88561904,668.91,668.37,0.29923545]
[1748919011202,2.87485173,668.93,668.37,0.29923545]
[1748919011407,1.76979238,668.93,668.37,0.29923545]
[1748919011608,2.00356704,668.92,668.37,0.29923545]
[1748919011808,0.88555774,668.91,668.37,0.29923545]
[1748919012107,0.88555513,668.9,668.37,0.29923545]
[1748919012301,0.88555557,668.89,668.37,0.29923545]
[1748919012508,2.20941073,668.91,668.37,0.29923545]
[1748919012808,1.10435138,668.91,668.37,0.29923545]
[1748919013108,0.88562394,668.9,668.37,0.29923545]
[1748919013305,0.88562667,668.89,668.37,0.29923545]
[1748919013501,2.22235138,668.92,668.37,0.29923545]
[1748919014509,1.10435138,668.9,668.37,0.29923545]
[1748919014909,0.88804889,668.89,668.37,0.29923545]
[1748919015110,0.88805875,668.88,668.37,0.29923545]
[1748919015310,1.10435138,668.9,668.37,0.29923545]
[1748919015809,0.88819905,668.89,668.37,0.29923545]
[1748919016011,1.118,668.92,668.37,0.29923545]
[1748919016209,1.10488074,668.9,668.37,0.29923545]
[1748919016805,0.88890701,668.89,668.37,0.29923545]
[1748919017003,1.118,668.92,668.37,0.29923545]
[1748919017506,2.22288074,668.92,668.37,0.29923545]
[1748919018110,0.88890557,668.91,668.37,0.29923545]
[1748919018308,0.88890211,668.9,668.37,0.29923545]
[1748919018517,0.88890563,668.89,668.37,0.29923545]
[1748919019014,0.88890287,668.88,668.37,0.29923545]
[1748919019210,0.88890563,668.89,668.37,0.29923545]
[1748919020011,1.7823931,668.88,668.37,0.29923545]